bitfinex/quotes_BTCUSD_20251011
["timestamp","ask_amount","ask_price","bid_price","bid_amount"]
[1760172351873,4e-05,111640.0,111630.0,0.30416328]
[1760172352079,4e-05,111640.0,111630.0,6.0784713]
[1760172352274,4e-05,111640.0,111630.0,5.41198898]
[1760172352554,4e-05,111640.0,111630.0,6.17846579]
[1760172352739,4e-05,111640.0,111630.0,6.57846579]
[1760172353121,4e-05,111640.0,111630.0,6.67846574]
[1760172353647,4e-05,111640.0,111630.0,6.67896957]
[1760172354074,4e-05,111640.0,111630.0,6.57896958]
[1760172354280,4e-05,111640.0,111630.0,6.67896957]
[1760172355120,4e-05,111640.0,111630.0,6.57896958]
[1760172355549,4e-05,111640.0,111630.0,6.67896957]
[1760172356347,4e-05,111640.0,111630.0,6.25725508]
[1760172356568,4e-05,111640.0,111630.0,6.35725507]
[1760172356770,4e-05,111640.0,111630.0,6.75725507]
[1760172357045,4e-05,111660.0,111650.0,0.2342831]
[1760172357250,4e-05,111660.0,111650.0,6.02921072]
[1760172357453,4e-05,111660.0,111650.0,6.15688451]
[1760172357635,4e-05,111660.0,111650.0,6.18148809]
[1760172357889,4e-05,111660.0,111650.0,6.20303728]
[1760172358303,4e-05,111660.0,111650.0,6.30303723]
[1760172358496,4e-05,111660.0,111650.0,6.81368802]
[1760172359081,0.54592665,111730.0,111710.0,0.17841355]
[1760172359287,0.58114665,111730.0,111710.0,0.17841355]
[1760172359506,0.519035,111710.0,111700.0,0.0301519]
[1760172359714,0.519035,111710.0,111700.0,0.20920292]
[1760172359919,0.519035,111710.0,111700.0,0.4]
[1760172360164,0.179035,111710.0,111700.0,0.4]
[1760172360372,0.179035,111710.0,111700.0,0.40050383]
[1760172360577,0.214255,111710.0,111700.0,0.40050383]
[1760172360784,0.214255,111710.0,111700.0,0.00050383]
[1760172360785,0.631695,111710.0,111700.0,0.00050383]
[1760172360988,0.580595,111710.0,111700.0,0.00050383]
[1760172361195,0.26752496,111710.0,111700.0,0.10050378]
[1760172361397,0.54596496,111710.0,111700.0,0.10050378]
[1760172361607,0.65862496,111710.0,111700.0,0.10050378]
[1760172362019,0.65862496,111710.0,111700.0,0.00050383]
[1760172363324,0.60752496,111710.0,111700.0,0.00050383]
[1760172363740,0.54596496,111710.0,111700.0,0.00050383]
[1760172363943,0.34,111710.0,111700.0,0.17955485]
[1760172364147,0.179035,111710.0,111700.0,0.00050383]
[1760172364350,0.1842849,111710.0,111700.0,0.00050383]
[1760172364557,0.5242849,111710.0,111700.0,0.00050383]
[1760172364962,0.5595049,111710.0,111700.0,0.10050378]
[1760172365191,0.6369449,111710.0,111700.0,0.00050383]
[1760172372774,0.66194489,111710.0,111700.0,0.00050383]
[1760172373549,0.6369449,111710.0,111700.0,0.00050383]
[1760172374334,0.66388084,111710.0,111700.0,0.00050383]
[1760172375752,0.47934365,111710.0,111700.0,0.00050383]
[1760172375949,0.65841865,111710.0,111700.0,0.00050383]
[1760172376760,0.68341864,111710.0,111700.0,0.00050383]
[1760172381255,0.34367093,111710.0,111700.0,0.00050383]
[1760172383206,0.68367093,111710.0,111700.0,0.00050383]
[1760172385730,0.65867094,111710.0,111700.0,0.00050383]
[1760172386604,0.631735,111710.0,111700.0,0.00050383]
[1760172390683,0.68367286,111710.0,111700.0,0.00050383]
[1760172393710,0.631735,111710.0,111700.0,0.00050383]
[1760172394782,0.240635,111710.0,111700.0,0.00050383]
[1760172394987,0.240635,111710.0,111700.0,0.06358788]
[1760172395414,0.631745,111710.0,111700.0,0.06358788]
[1760172396029,0.631745,111710.0,111700.0,0.00050383]
[1760172396644,0.631745,111710.0,111700.0,0.06358788]
[1760172398772,0.631745,111710.0,111700.0,0.00050383]
[1760172398978,0.631745,111710.0,111700.0,0.06358788]
[1760172399798,0.631745,111710.0,111700.0,0.00050383]
[1760172400130,0.179075,111710.0,111700.0,0.00050383]
[1760172400336,0.16450593,111710.0,111700.0,0.00050383]
[1760172400537,0.34,111710.0,111700.0,0.00050383]
[1760172400712,0.34,111710.0,111700.0,0.07896646]
[1760172400873,0.34,111710.0,111700.0,0.25801748]
[1760172401314,0.34,111710.0,111700.0,0.35801743]
[1760172401542,0.553065,111710.0,111700.0,0.35801743]
[1760172401907,0.34,111710.0,111700.0,0.35801743]
[1760172402112,0.519035,111710.0,111700.0,0.35801743]
[1760172403370,0.519035,111710.0,111700.0,0.2795548]
[1760172403802,0.519035,111710.0,111700.0,0.6795548]
[1760172405046,0.34,111710.0,111700.0,0.6795548]
[1760172405564,0.519035,111710.0,111700.0,0.6795548]
[1760172406097,0.34,111710.0,111700.0,0.6795548]
[1760172406257,0.34,111710.0,111700.0,0.74259485]
[1760172406840,0.34,111710.0,111700.0,0.34259485]
[1760172407239,0.34,111710.0,111700.0,0.74259485]
[1760172408246,0.34,111710.0,111700.0,0.77274675]
[1760172408422,0.34,111730.0,111720.0,0.17901183]
[1760172408628,0.51900295,111730.0,111720.0,0.17901183]
[1760172409442,0.00468651,111740.0,111730.0,0.17900295]
[1760172409641,0.0007357,111740.0,111730.0,0.17900295]
[1760172409990,0.17972263,111740.0,111730.0,0.17900295]
[1760172410238,0.21745212,111750.0,111730.0,0.24202783]
[1760172410442,0.51972263,111740.0,111730.0,0.17900295]
[1760172410621,0.51898693,111740.0,111730.0,0.17900295]
[1760172411197,0.34,111740.0,111730.0,0.17900295]
[1760172411432,0.51898693,111740.0,111730.0,0.17900295]
[1760172412562,0.51898693,111740.0,111730.0,0.2790029]
[1760172412766,0.55301693,111740.0,111730.0,0.2790029]
[1760172412955,0.57978693,111740.0,111730.0,0.2790029]
[1760172413357,0.57978693,111740.0,111730.0,0.09999995]
[1760172414177,0.58153572,111740.0,111730.0,0.09999995]
[1760172415467,0.52073572,111740.0,111730.0,0.09999995]
[1760172415668,0.55476572,111740.0,111730.0,0.2790029]
[1760172416085,0.55476572,111740.0,111730.0,0.09999995]
[1760172416500,0.37577879,111740.0,111730.0,0.2790029]
[1760172416705,0.34174879,111740.0,111730.0,0.2790029]
[1760172416912,0.55467572,111740.0,111730.0,0.09999995]
[1760172417514,0.40219879,111740.0,111730.0,0.09999995]
[1760172417728,0.58118572,111740.0,111730.0,0.09999995]
[1760172418324,0.63380572,111740.0,111730.0,0.09999995]
[1760172419327,0.58118572,111740.0,111730.0,0.09999995]
[1760172419576,0.63380572,111740.0,111730.0,0.09999995]
[1760172419989,0.51901897,111720.0,111700.0,0.06448866]
[1760172420106,0.17901897,111720.0,111700.0,0.24544421]
[1760172420311,0.17901897,111720.0,111700.0,0.24353896]
[1760172420925,0.21447666,111730.0,111710.0,0.179035]
[1760172421123,0.17901897,111720.0,111700.0,0.24353896]
[1760172421367,0.179035,111710.0,111700.0,0.31066593]
[1760172422562,0.179035,111710.0,111700.0,0.31066665]
[1760172422912,0.17901897,111720.0,111700.0,0.31066665]
[1760172423124,0.17901897,111720.0,111710.0,0.06305686]
[1760172423341,0.34,111720.0,111710.0,0.27224376]
[1760172423540,0.51901897,111720.0,111710.0,0.06305686]
[1760172423739,0.57946897,111720.0,111710.0,0.06305686]
[1760172424313,0.63208897,111720.0,111710.0,0.06305686]
[1760172425137,0.179035,111710.0,111700.0,0.06452064]
[1760172425499,0.205545,111710.0,111700.0,0.06452064]
[1760172425699,0.239485,111710.0,111700.0,0.06452064]
[1760172426543,0.632105,111710.0,111700.0,0.10146373]
[1760172426744,0.632105,111710.0,111700.0,0.00146378]
[1760172431393,0.579485,111710.0,111700.0,0.00146378]
[1760172431698,0.632105,111710.0,111700.0,0.00146378]
[1760172438678,0.65903784,111710.0,111700.0,0.00146378]
[1760172443539,0.17960234,111720.0,111710.0,0.179035]
[1760172443710,0.00058304,111720.0,111710.0,0.06305686]
[1760172443937,0.00058304,111720.0,111710.0,0.24209186]
[1760172444166,0.34131874,111720.0,111710.0,0.24209186]
[1760172444382,0.34058304,111720.0,111710.0,0.24209186]
[1760172444589,0.00058304,111720.0,111710.0,0.24209186]
[1760172444790,0.00058304,111720.0,111710.0,0.34209181]
[1760172445416,0.00058304,111720.0,111710.0,0.35749758]
[1760172445617,0.00058304,111720.0,111710.0,0.75749758]
[1760172448657,0.00058304,111720.0,111710.0,0.38764948]
[1760172449010,0.00058304,111720.0,111710.0,0.78764948]
[1760172450422,7.232e-05,111720.0,111710.0,0.78764948]
[1760172452012,7.232e-05,111720.0,111710.0,0.38764948]
[1760172452408,7.232e-05,111720.0,111710.0,0.78764948]
[1760172452939,7.232e-05,111720.0,111710.0,0.75749758]
[1760172453825,0.17909129,111720.0,111710.0,0.57846258]
[1760172453939,0.17909129,111720.0,111710.0,0.75749758]
[1760172454139,0.17909129,111720.0,111710.0,0.67903495]
[1760172454383,0.17909129,111720.0,111710.0,0.56296927]
[1760172454582,0.17909129,111720.0,111710.0,0.09999995]
[1760172454583,0.63041129,111720.0,111710.0,0.09999995]
[1760172454779,0.179035,111710.0,111700.0,0.0644331]
[1760172454981,0.594765,111710.0,111700.0,0.00146378]
[1760172455182,0.630355,111710.0,111700.0,0.00146378]
[1760172456043,0.630355,111710.0,111700.0,0.10146373]
[1760172457239,0.630355,111710.0,111700.0,0.00146378]
[1760172458318,0.65535499,111710.0,111700.0,0.00146378]
[1760172459723,0.6600354,111710.0,111700.0,0.00146378]
[1760172464544,0.71616788,111710.0,111700.0,0.00146378]
[1760172465019,0.64499321,111710.0,111700.0,0.00146378]
[1760172465802,0.20928311,111650.0,111640.0,0.24205634]
[1760172465988,0.20928311,111650.0,111640.0,0.17959136]
[1760172466204,0.20928311,111650.0,111640.0,0.00050434]
[1760172466424,0.20928311,111650.0,111640.0,0.18366347]
[1760172466807,0.20928311,111650.0,111640.0,0.68366342]
[1760172467189,0.0301519,111650.0,111640.0,0.68366342]
[1760172467407,0.21001881,111650.0,111640.0,0.50451617]
[1760172467624,0.20928311,111650.0,111640.0,0.68366342]
[1760172468543,0.0301519,111650.0,111640.0,0.68366342]
[1760172468997,0.20928311,111650.0,111640.0,0.68366342]
[1760172469868,0.20928311,111650.0,111640.0,0.28366342]
[1760172470095,0.0301519,111650.0,111640.0,0.28366342]
[1760172470298,0.0301519,111650.0,111640.0,0.68366342]
[1760172471150,0.20928311,111650.0,111640.0,0.68366342]
[1760172472442,0.0301519,111650.0,111640.0,0.68366342]
[1760172473373,0.0301519,111650.0,111640.0,0.28366342]
[1760172473698,0.0301519,111650.0,111640.0,0.68366342]
[1760172475698,0.0301519,111650.0,111640.0,0.74663274]
[1760172476301,0.5795048,111670.0,111640.0,0.68366342]
[1760172476509,0.17985087,111660.0,111640.0,0.67965154]
[1760172476658,0.17911517,111660.0,111640.0,0.67965154]
[1760172476861,0.17911517,111660.0,111640.0,0.27965154]
[1760172477433,0.17911517,111660.0,111640.0,0.67965154]
[1760172477733,0.51909966,111670.0,111650.0,0.17913121]
[1760172478273,0.0301519,111660.0,111650.0,0.17913121]
[1760172478909,0.0301519,111660.0,111650.0,0.27913116]
[1760172479624,0.02990941,111660.0,111650.0,0.27913116]
[1760172480018,0.20976028,111660.0,111650.0,0.27913116]
[1760172480260,0.20902458,111660.0,111650.0,0.27913116]
[1760172480868,0.02990941,111660.0,111650.0,0.67913116]
[1760172481202,0.20976028,111660.0,111650.0,0.67913116]
[1760172481424,0.02990941,111660.0,111650.0,0.67913116]
[1760172481597,0.20902458,111660.0,111650.0,0.67913116]
[1760172482434,0.02990941,111660.0,111650.0,0.27913116]
[1760172482638,0.17906817,111690.0,111680.0,0.17907608]
[1760172482841,0.17906706,111690.0,111680.0,0.17907608]
[1760172483042,0.17906706,111690.0,111670.0,0.17909913]
[1760172483243,0.0301519,111680.0,111670.0,0.17909913]
[1760172483443,0.20923499,111680.0,111670.0,0.17909913]
[1760172483638,0.17908309,111680.0,111670.0,0.17909913]
[1760172483838,0.51906706,111690.0,111670.0,0.17960347]
[1760172484257,0.51906706,111690.0,111670.0,0.34257274]
[1760172484394,0.0301519,111680.0,111670.0,0.34257274]
[1760172484601,0.34,111690.0,111680.0,0.17908309]
[1760172484813,0.17905102,111700.0,111690.0,0.17906706]
[1760172485004,0.20920292,111700.0,111690.0,0.17906706]
[1760172485209,0.54920292,111700.0,111690.0,0.17906706]
[1760172485449,0.17905102,111700.0,111680.0,0.17908309]
[1760172486058,0.21536687,111710.0,111690.0,0.27906701]
[1760172486455,0.18843688,111710.0,111690.0,0.67906701]
[1760172486652,0.00044917,111710.0,111700.0,0.17905102]
[1760172487407,0.03060107,111710.0,111700.0,0.17905102]
[1760172487608,0.00044917,111710.0,111700.0,0.27905097]
[1760172487809,0.00044917,111710.0,111700.0,0.34202029]
[1760172488726,0.00048917,111710.0,111700.0,0.34202029]
[1760172489314,0.00048917,111710.0,111700.0,0.27905097]
[1760172489946,0.00048917,111710.0,111700.0,0.67905097]
[1760172491210,0.20967607,111710.0,111700.0,0.49999995]
[1760172491603,0.24523607,111710.0,111700.0,0.49999995]
[1760172492241,0.27000607,111710.0,111700.0,0.49999995]
[1760172492676,0.03064107,111710.0,111700.0,0.49999995]
[1760172492915,0.03064107,111710.0,111700.0,0.67905097]
[1760172493335,0.20967607,111710.0,111700.0,0.67905097]
[1760172493548,0.03064107,111710.0,111700.0,0.67905097]
[1760172493894,0.53064107,111710.0,111700.0,0.67905097]
[1760172495450,0.53064107,111710.0,111700.0,0.74202029]
[1760172495652,0.53064107,111710.0,111700.0,0.34202029]
[1760172496082,0.70967607,111710.0,111700.0,0.27905097]
[1760172496428,0.53064107,111710.0,111700.0,0.67905097]
[1760172497787,0.70967607,111710.0,111700.0,0.49999995]
[1760172498048,0.70967607,111710.0,111700.0,0.67905097]
[1760172499176,0.53064107,111710.0,111700.0,0.67905097]
[1760172500834,0.70967607,111710.0,111700.0,0.67905097]
[1760172501034,0.70967607,111710.0,111700.0,0.49999995]
[1760172501420,0.70967607,111710.0,111700.0,0.67905097]
[1760172501712,0.70967607,111710.0,111700.0,0.27905097]
[1760172502276,0.70967607,111710.0,111700.0,0.67905097]
[1760172502984,0.74523607,111710.0,111700.0,0.09999995]
[1760172503593,0.70967607,111710.0,111700.0,0.09999995]
[1760172505275,1.04967607,111710.0,111700.0,0.09999995]
[1760172506293,1.08523607,111710.0,111700.0,0.09999995]
[1760172507290,1.04967607,111710.0,111700.0,0.09999995]
[1760172508339,1.04967607,111710.0,111700.0,0.16296927]
[1760172508744,1.08530607,111710.0,111700.0,0.16296927]
[1760172509180,1.04967607,111710.0,111700.0,0.16296927]
[1760172510049,0.70967607,111710.0,111700.0,0.16296927]
[1760172511350,0.53064107,111710.0,111700.0,0.34202029]
[1760172512301,0.53064107,111710.0,111700.0,0.3575136]
[1760172513555,0.48592339,111710.0,111700.0,0.3575136]
[1760172513966,0.48592339,111710.0,111700.0,0.7575136]
[1760172514396,0.51607529,111710.0,111700.0,0.7575136]
[1760172515741,0.69511029,111710.0,111700.0,0.7575136]
[1760172515974,0.51607529,111710.0,111700.0,0.7575136]
[1760172517225,0.51607529,111710.0,111700.0,0.3575136]
[1760172517692,0.51607529,111710.0,111700.0,0.7575136]
[1760172520586,0.69511029,111710.0,111700.0,0.7575136]
[1760172520794,0.51607529,111710.0,111700.0,0.7575136]
[1760172523120,0.69511029,111710.0,111700.0,0.7575136]
[1760172523352,0.51607529,111710.0,111700.0,0.7575136]
[1760172523516,0.50150927,111710.0,111700.0,0.7575136]
[1760172525107,0.68054427,111710.0,111700.0,0.7575136]
[1760172525672,0.50150927,111710.0,111700.0,0.7575136]
[1760172530452,0.68054427,111710.0,111700.0,0.7575136]
[1760172531488,0.50150927,111710.0,111700.0,0.7575136]
[1760172533088,0.68054427,111710.0,111700.0,0.7575136]
[1760172533646,0.48694369,111710.0,111700.0,0.7575136]
[1760172534075,0.66597869,111710.0,111700.0,0.7575136]
[1760172534735,0.48694369,111710.0,111700.0,0.7575136]
[1760172536297,0.48694369,111710.0,111700.0,0.67905097]
[1760172537090,0.36593967,111710.0,111700.0,0.67905097]
[1760172537317,0.36593967,111710.0,111700.0,0.75793062]
[1760172540833,0.33578777,111710.0,111700.0,0.67905097]
[1760172543546,0.32122369,111710.0,111700.0,0.67905097]
[1760172547263,0.20023082,111710.0,111700.0,0.78970176]
[1760172547671,0.20023082,111710.0,111700.0,0.67905097]
[1760172547841,0.23038272,111710.0,111700.0,0.75781433]
[1760172550787,0.40941772,111710.0,111700.0,0.57876331]
[1760172550986,0.40941772,111710.0,111700.0,0.75781433]
[1760172551388,0.23038272,111710.0,111700.0,0.75781433]
[1760172552033,0.40941772,111710.0,111700.0,0.75781433]
[1760172553047,0.40941772,111710.0,111700.0,0.35781433]
[1760172553641,0.40941772,111710.0,111700.0,0.75781433]
[1760172553846,0.23038272,111710.0,111700.0,0.75781433]
[1760172557125,0.21581771,111710.0,111700.0,0.75781433]
[1760172557330,0.21581771,111710.0,111700.0,0.67905097]
[1760172557510,0.18566581,111710.0,111700.0,0.67905097]
[1760172557916,0.18566581,111710.0,111700.0,0.78970176]
[1760172561312,0.18566581,111710.0,111700.0,5.83970176]
[1760172561447,0.16527739,111710.0,111700.0,5.83970176]
[1760172563519,0.16527739,111710.0,111700.0,0.78970176]
[1760172565836,0.21810523,111730.0,111700.0,0.78970176]
[1760172565837,0.17694146,111730.0,111720.0,0.17901897]
[1760172566447,0.2038626,111730.0,111720.0,0.17901897]
[1760172566843,0.2038626,111730.0,111710.0,0.179035]
[1760172567047,0.21281274,111730.0,111720.0,0.09999995]
[1760172567356,0.26982274,111730.0,111720.0,0.09999995]
[1760172567881,0.26851464,111730.0,111720.0,0.09999995]
[1760172568180,0.24296464,111730.0,111720.0,0.09999995]
[1760172569056,0.27442464,111730.0,111720.0,0.09999995]
[1760172570320,0.29997464,111730.0,111720.0,0.09999995]
[1760172570842,0.29997464,111730.0,111720.0,0.49999995]
[1760172571185,0.26851464,111730.0,111720.0,0.49999995]
[1760172571376,0.29997464,111730.0,111720.0,0.49999995]
[1760172571579,0.3011406,111730.0,111720.0,0.49999995]
[1760172571930,0.3011406,111730.0,111720.0,0.09999995]
[1760172572130,0.3483406,111730.0,111720.0,0.09999995]
[1760172572269,0.3483406,111730.0,111720.0,0.49999995]
[1760172572475,0.3483406,111730.0,111720.0,0.09999995]
[1760172572691,0.3011406,111730.0,111720.0,0.09999995]
[1760172572970,0.2441306,111730.0,111720.0,0.09999995]
[1760172573507,0.2755906,111730.0,111720.0,0.09999995]
[1760172573886,0.3011406,111730.0,111720.0,0.09999995]
[1760172574295,0.3483406,111730.0,111720.0,0.09999995]
[1760172574724,0.3483406,111730.0,111720.0,0.09914913]
[1760172574929,0.3483406,111730.0,111720.0,0.09999995]
[1760172575110,0.2441306,111730.0,111720.0,0.09999995]
[1760172575907,0.2441306,111730.0,111720.0,0.17873197]
[1760172577069,0.2755906,111730.0,111720.0,0.17873197]
[1760172577314,0.3011406,111730.0,111720.0,0.17873197]
[1760172577912,0.3483406,111730.0,111720.0,0.17873197]
[1760172578051,0.6883406,111730.0,111720.0,0.17873197]
[1760172578256,0.6883406,111730.0,111720.0,0.09999995]
[1760172580279,0.6411406,111730.0,111720.0,0.09999995]
[1760172580806,0.6900606,111730.0,111720.0,0.09999995]
[1760172583135,0.6900606,111730.0,111720.0,0.09979981]
[1760172583366,0.6900606,111730.0,111720.0,0.09999995]
[1760172588379,0.6900606,111730.0,111720.0,0.09274848]
[1760172588580,0.6900606,111730.0,111720.0,0.09999995]
[1760172592966,0.6411406,111730.0,111720.0,0.09999995]
[1760172593947,0.5841306,111730.0,111720.0,0.09999995]
[1760172594565,0.2441306,111730.0,111720.0,0.09999995]
[1760172594992,0.2766106,111730.0,111720.0,0.09999995]
[1760172595227,0.3016506,111730.0,111720.0,0.09999995]
[1760172595754,0.3016506,111730.0,111720.0,0.49999995]
[1760172596544,0.3526006,111730.0,111720.0,0.49999995]
[1760172597087,0.3016506,111730.0,111720.0,0.09999995]
[1760172597632,0.3016506,111730.0,111720.0,0.49999995]
[1760172598450,0.3016506,111730.0,111720.0,0.57873197]
[1760172599046,0.3526006,111730.0,111720.0,0.57873197]
[1760172600831,0.3526006,111730.0,111720.0,0.17873197]
[1760172600986,0.6926006,111730.0,111720.0,0.09999995]
[1760172603076,0.3680871,111730.0,111720.0,0.09999995]
[1760172603281,0.01352086,111730.0,111720.0,0.35775094]
[1760172604311,0.01352086,111730.0,111720.0,0.30542769]
[1760172604860,0.01352086,111730.0,111720.0,0.70542769]
[1760172605282,0.01352086,111730.0,111720.0,0.81607848]
[1760172605485,0.01352086,111730.0,111720.0,0.78966971]
[1760172605686,0.22267571,111730.0,111720.0,0.61065074]
[1760172605892,0.22267571,111730.0,111720.0,0.86851157]
[1760172606164,0.22267571,111730.0,111720.0,0.75786078]
[1760172606517,0.04367276,111730.0,111720.0,0.75786078]
[1760172606690,0.22267571,111730.0,111720.0,0.75786078]
[1760172607128,0.04367276,111730.0,111720.0,0.75786078]
[1760172608165,0.01352086,111730.0,111720.0,0.75786078]
[1760172613188,0.00283982,111730.0,111720.0,0.75786078]
[1760172615259,0.18184277,111730.0,111720.0,0.57884181]
[1760172615410,0.21199467,111730.0,111720.0,0.75786078]
[1760172615606,0.01735058,111730.0,111720.0,0.67901892]
[1760172615808,0.17900295,111730.0,111720.0,0.67901892]
[1760172616037,0.20592298,111730.0,111720.0,0.67901892]
[1760172617687,0.23607488,111730.0,111720.0,0.67901892]
[1760172618791,0.26871488,111730.0,111720.0,0.49999995]
[1760172618994,0.23607488,111730.0,111720.0,0.49999995]
[1760172619350,0.23607488,111730.0,111720.0,0.09999995]
[1760172619554,0.20592298,111730.0,111720.0,0.09999995]
[1760172619735,0.34380488,111730.0,111720.0,0.09999995]
[1760172620138,0.68380488,111730.0,111720.0,0.09999995]
[1760172621973,0.63285488,111730.0,111720.0,0.09999995]
[1760172622198,0.68380488,111730.0,111720.0,0.09999995]
[1760172622625,0.63285488,111730.0,111720.0,0.09999995]
[1760172623005,0.57607488,111730.0,111720.0,0.09999995]
[1760172623631,0.63285488,111730.0,111720.0,0.09999995]
[1760172623994,0.57607488,111730.0,111720.0,0.09999995]
[1760172624194,0.60871488,111730.0,111720.0,0.09999995]
[1760172624570,0.63285488,111730.0,111720.0,0.09999995]
[1760172624895,0.63285488,111730.0,111720.0,0.09987914]
[1760172625059,0.68380488,111730.0,111720.0,0.09999995]
[1760172626478,0.63285488,111730.0,111720.0,0.09999995]
[1760172629001,0.68022488,111730.0,111720.0,0.09999995]
[1760172630005,0.63285488,111730.0,111720.0,0.09999995]
[1760172630213,0.68022488,111730.0,111720.0,0.09999995]
[1760172631748,0.68022488,111730.0,111720.0,0.09621623]
[1760172631962,0.68022488,111730.0,111720.0,0.09999995]
[1760172632509,0.68490349,111730.0,111720.0,0.09999995]
[1760172654878,0.54490349,111730.0,111720.0,0.09999995]
[1760172655254,0.31798346,111730.0,111720.0,0.09999995]
[1760172655461,0.34491222,111730.0,111720.0,0.09999995]
[1760172664482,0.68491222,111730.0,111720.0,0.09999995]
[1760172674613,0.49091861,111730.0,111720.0,0.09999995]
[1760172674806,0.54795861,111730.0,111720.0,0.09999995]
[1760172676599,0.62755051,111730.0,111720.0,0.09999995]
[1760172676806,0.6525505,111730.0,111720.0,0.09999995]
[1760172677016,0.62755051,111730.0,111720.0,0.09999995]
[1760172678099,0.62271782,111730.0,111720.0,0.09999995]
[1760172678328,0.64964658,111730.0,111720.0,0.09999995]
[1760172685890,0.34256361,111730.0,111720.0,0.09999995]
[1760172687788,0.68256361,111730.0,111720.0,0.09999995]
[1760172689528,0.20593171,111730.0,111720.0,0.11767995]
[1760172690533,0.23994171,111730.0,111720.0,0.09999995]
[1760172690737,0.31197171,111730.0,111720.0,0.09999995]
[1760172690958,0.68212361,111730.0,111720.0,0.09999995]
[1760172692736,0.60557171,111730.0,111720.0,0.11087995]
[1760172692976,0.54593171,111730.0,111720.0,0.11087995]
[1760172693381,0.57994171,111730.0,111720.0,0.11087995]
[1760172694043,0.60557171,111730.0,111720.0,0.11087995]
[1760172694280,0.65197171,111730.0,111720.0,0.09999995]
[1760172696604,0.65095872,111730.0,111720.0,0.09999995]
[1760172702218,0.60455872,111730.0,111720.0,0.11038995]
[1760172702416,0.65329872,111730.0,111720.0,0.11038995]
[1760172702623,0.60455872,111730.0,111720.0,0.11038995]
[1760172704034,0.65329872,111730.0,111720.0,0.09999995]
[1760172704234,0.46827943,111730.0,111720.0,0.09999995]
[1760172704512,0.64728238,111730.0,111720.0,0.09999995]
[1760172706887,0.67743428,111730.0,111720.0,0.09999995]
[1760172712909,0.62869428,111730.0,111720.0,0.11038995]
[1760172713131,0.67743428,111730.0,111720.0,0.09999995]
[1760172721321,0.62869428,111730.0,111720.0,0.11051995]
[1760172721454,0.67521428,111730.0,111720.0,0.11051995]
[1760172721861,0.67521428,111730.0,111720.0,0.09999995]
[1760172725467,0.67521428,111730.0,111720.0,0.11051995]
[1760172725468,0.62869428,111730.0,111720.0,0.11051995]
[1760172725827,0.67521428,111730.0,111720.0,0.11051995]
[1760172726243,0.62869428,111730.0,111720.0,0.11051995]
[1760172726440,0.19890238,111730.0,111720.0,0.11051995]
[1760172726643,0.19890238,111730.0,111720.0,0.11709995]
[1760172726898,0.19890238,111730.0,111720.0,0.19594181]
[1760172727127,0.19890238,111730.0,111720.0,0.11709995]
[1760172727332,0.19890238,111730.0,111720.0,0.19594181]
[1760172728079,0.19890238,111730.0,111720.0,0.59594181]
[1760172729549,0.19890238,111730.0,111720.0,0.58936181]
[1760172730430,0.19890238,111730.0,111720.0,0.59594181]
[1760172730747,0.19890238,111730.0,111720.0,0.19594181]
[1760172731421,0.19890238,111730.0,111720.0,0.51709995]
[1760172733218,0.19890238,111730.0,111720.0,0.59594181]
[1760172733586,0.19890238,111730.0,111720.0,0.51709995]
[1760172734281,0.19890238,111730.0,111720.0,0.11709995]
[1760172734774,0.19890238,111730.0,111720.0,0.51709995]
[1760172735272,0.23131238,111730.0,111720.0,0.51051995]
[1760172735431,0.19890238,111730.0,111720.0,0.51709995]
[1760172737937,0.19890238,111730.0,111720.0,0.11709995]
[1760172738657,0.19890238,111730.0,111720.0,0.69611892]
[1760172738863,0.01989943,111730.0,111720.0,0.69611892]
[1760172739089,0.02063513,111730.0,111720.0,0.77496078]
[1760172739493,0.0007357,111730.0,111720.0,0.77496078]
[1760172741176,0.20591317,111740.0,111720.0,0.77496078]
[1760172741342,0.20591317,111740.0,111730.0,0.01316]
[1760172741548,0.20591317,111740.0,111730.0,0.02368]
[1760172741946,0.20591317,111740.0,111730.0,0.42368]
[1760172743381,0.17898693,111740.0,111730.0,0.60268295]
[1760172743843,0.17898693,111740.0,111730.0,0.60768295]
[1760172744256,0.21290619,111750.0,111740.0,0.17898693]
[1760172744482,0.21290619,111750.0,111740.0,0.18386693]
[1760172744680,0.21290619,111750.0,111740.0,0.19167693]
[1760172745103,0.18598449,111750.0,111740.0,0.19167693]
[1760172745312,0.18598449,111750.0,111740.0,0.19667693]
[1760172745519,0.18598449,111750.0,111740.0,0.59667693]
[1760172746575,0.18598449,111750.0,111740.0,0.69667688]
[1760172746779,0.18598449,111750.0,111740.0,0.69167688]
[1760172747116,0.18598449,111750.0,111740.0,0.69667688]
[1760172747551,0.18715015,111750.0,111740.0,0.69667688]
[1760172748612,0.00817924,111750.0,111740.0,0.29667688]
[1760172748821,0.18715015,111750.0,111740.0,0.29667688]
[1760172749045,0.00817924,111750.0,111740.0,0.69667688]
[1760172749284,0.18715015,111750.0,111740.0,0.69667688]
[1760172749527,0.00817924,111750.0,111740.0,0.69667688]
[1760172751638,0.18715015,111750.0,111740.0,0.69667688]
[1760172752052,0.18715015,111750.0,111740.0,0.29667688]
[1760172752598,0.18715015,111750.0,111740.0,0.69667688]
[1760172754359,0.00817924,111750.0,111740.0,0.69667688]
[1760172755688,0.17895941,111760.0,111750.0,0.17897003]
[1760172755906,0.55485711,111770.0,111750.0,0.18385003]
[1760172756085,0.253287,111780.0,111750.0,0.18385003]
[1760172756086,0.18954592,111790.0,111760.0,0.1916449]
[1760172756320,0.18954592,111790.0,111770.0,0.18381889]
[1760172756531,0.18954592,111790.0,111780.0,0.01757]
[1760172756532,0.21645784,111790.0,111780.0,0.01757]
[1760172756732,0.17894459,111790.0,111780.0,0.01757]
[1760172756933,0.17894459,111790.0,111780.0,0.01772145]
[1760172757363,0.22044148,111800.0,111780.0,0.59664433]
[1760172757587,0.17964257,111790.0,111780.0,0.41772145]
[1760172757833,0.22044148,111800.0,111790.0,0.00488]
[1760172757834,0.18449087,111800.0,111790.0,0.00488]
[1760172758042,0.18449087,111800.0,111790.0,0.01269]
[1760172758470,0.21667087,111800.0,111790.0,0.00781]
[1760172758683,0.27189277,111800.0,111790.0,0.00781]
[1760172758884,0.17890687,111790.0,111780.0,0.40503145]
[1760172759092,0.28618687,111790.0,111780.0,0.00503145]
[1760172759521,0.65633877,111790.0,111780.0,0.00515145]
[1760172759749,0.68325566,111790.0,111780.0,0.00515145]
[1760172759963,0.68325566,111790.0,111720.0,0.25776617]
[1760172759964,0.3701519,111750.0,111710.0,35.0]
[1760172760172,0.17900295,111730.0,111720.0,0.00551]
[1760172760389,0.17901897,111720.0,111710.0,35.00601434]
[1760172760603,0.17901897,111720.0,111710.0,35.01152434]
[1760172760815,0.17901897,111720.0,111710.0,35.00601434]
[1760172761034,0.25378897,111720.0,111710.0,35.00601434]
[1760172761265,0.20376897,111720.0,111710.0,35.01101434]
[1760172761720,0.20376897,111720.0,111710.0,35.01372306]
[1760172761926,0.62394087,111720.0,111710.0,35.00821306]
[1760172762535,0.64894086,111720.0,111710.0,34.95753306]
[1760172762738,0.64894086,111720.0,111710.0,34.4816485]